bitfinex/quotes_ETHUSD_20220309
["timestamp","ask_amount","ask_price","bid_price","bid_amount"]
[1646790799414,4.051,2615.3,2615.0,0.69183835]
[1646790799415,15.27,2615.1,2615.0,0.69183835]
[1646790799818,17.121,2615.1,2615.0,0.69183835]
[1646790800016,14.52311117,2615.1,2615.0,0.69183835]
[1646790804568,0.551,2615.1,2615.0,0.69183835]
[1646790804869,0.7422,2615.7,2615.0,0.69183835]
[1646790805067,0.551,2615.7,2615.0,0.69183835]
[1646790805714,0.91812541,2615.1,2615.0,0.69183835]
[1646790807919,12.98812541,2615.1,2615.0,0.69183835]
[1646790808320,14.53912541,2615.1,2615.0,0.69183835]
[1646790809062,1.46912541,2615.1,2615.0,0.69183835]
[1646790810061,13.23912541,2615.1,2615.0,0.69183835]
[1646790810363,0.1432,2615.7,2615.0,1.07713835]
[1646790810562,1.6932996,2615.8,2615.0,0.69183835]
[1646790810762,0.5662996,2615.8,2615.0,0.69183835]
[1646790811065,12.3362996,2615.8,2615.0,0.69183835]
[1646790811270,0.92034849,2615.2,2615.0,0.69039755]
[1646790812061,17.4644,2615.8,2615.2,0.74984082]
[1646790812062,1.16177616,2615.4,2615.2,0.74984082]
[1646790812263,1.16177616,2615.4,2615.2,0.7678197]
[1646790812709,11.77,2615.3,2615.2,0.7678197]
[1646790812914,15.821,2615.3,2615.2,0.7678197]
[1646790813113,13.321,2615.3,2615.2,0.7678197]
[1646790813512,0.551,2615.3,2615.2,0.7678197]
[1646790813714,1.16177616,2615.4,2615.2,0.7678197]
[1646790814714,12.93177616,2615.4,2615.2,0.77209922]
[1646790815114,13.93177616,2615.4,2615.2,0.77209922]
[1646790815314,15.0188531,2615.3,2615.2,0.77209922]
[1646790815514,11.77,2615.3,2615.2,0.7678197]
[1646790815914,11.77,2615.3,2615.2,0.77209922]
[1646790816762,11.77,2615.3,2615.2,0.7678197]
[1646790816961,12.77,2615.3,2615.2,0.7678197]
[1646790817159,13.07,2615.3,2615.2,0.7678197]
[1646790817359,16.31903981,2615.3,2615.2,0.7678197]
[1646790817558,13.07,2615.3,2615.2,0.7678197]
[1646790818863,1.3,2615.3,2615.2,0.7678197]
[1646790819364,0.3,2615.3,2615.2,0.7678197]
[1646790819667,14.48277616,2615.4,2615.2,0.7678197]
[1646790819668,2.71277616,2615.4,2615.2,0.7678197]
[1646790819864,14.78277616,2615.4,2615.2,0.7678197]
[1646790820063,13.73277616,2615.4,2615.2,0.7678197]
[1646790820312,14.73277616,2615.4,2615.2,0.7678197]
[1646790821110,2.96277616,2615.4,2615.2,0.7678197]
[1646790821310,1.71277616,2615.4,2615.2,0.7678197]
[1646790821512,1.16177616,2615.4,2615.2,0.7678197]
[1646790822011,1.16177616,2615.4,2615.2,0.77248715]
[1646790822818,1.16177616,2615.4,2615.2,0.7678197]
[1646790823018,1.16177616,2615.4,2615.2,0.77248715]
[1646790823415,13.89322879,2615.7,2615.2,0.77248715]
[1646790823618,11.9122496,2615.9,2615.2,0.77248715]
[1646790823816,12.9122496,2615.9,2615.2,0.77248715]
[1646790824082,12.90819997,2615.9,2615.2,0.7678197]
[1646790824280,0.00405002,2615.9,2615.3,3.50466738]
[1646790824482,0.00405002,2615.9,2615.7,1.09177768]
[1646790825281,1.16585596,2616.3,2615.7,1.09177768]
[1646790825682,1.16585596,2616.3,2615.6,0.3]
[1646790825880,1.16585596,2616.3,2615.3,1.5315]
[1646790825881,11.77,2616.2,2615.3,1.5315]
[1646790826180,11.77,2616.2,2615.4,1.95085449]
[1646790826480,11.77,2616.2,2615.4,0.3853]
[1646790826679,0.00121789,2615.9,2615.4,0.3853]
[1646790826880,1.03565676,2615.9,2615.4,1.36744752]
[1646790827280,0.00121789,2615.9,2615.4,1.36744752]
[1646790827711,14.1063,2616.4,2615.4,1.36744752]
[1646790828013,0.00121784,2615.9,2615.4,1.36744752]
[1646790828413,0.00121784,2615.9,2615.3,0.3]
[1646790828613,0.00121784,2615.9,2615.4,1.56558237]
[1646790828813,11.77,2615.9,2615.4,1.56558237]
[1646790829013,11.77,2615.9,2615.2,1.9484197]
[1646790829014,12.77,2615.9,2615.2,1.9484197]
[1646790829214,11.77,2615.7,2615.2,0.7678197]
[1646790829417,12.321,2615.8,2615.2,0.7678197]
[1646790829613,0.551,2615.8,2615.2,0.7678197]
[1646790829813,1.551,2615.8,2615.2,0.7678197]
[1646790830016,0.551,2615.8,2615.2,0.7678197]
[1646790830414,0.551,2615.8,2615.3,0.00467015]
[1646790831314,0.551,2615.8,2615.2,0.7678197]
[1646790831564,2.34639096,2616.0,2615.2,0.7678197]
[1646790831762,2.34639096,2616.0,2615.3,1.57030525]
[1646790831763,0.00405002,2615.9,2615.3,1.57030525]
[1646790831965,0.00405002,2615.9,2615.3,0.00467018]
[1646790832665,1.04639096,2616.0,2615.4,1.56561428]
[1646790832866,1.04639096,2616.0,2615.3,0.0046702]
[1646790832867,0.0040501,2615.9,2615.3,0.0046702]
[1646790833268,0.97107412,2615.6,2615.3,0.0046702]
[1646790833667,11.77,2615.5,2615.4,1.56564032]
[1646790833866,0.97107412,2615.6,2615.3,0.00345487]
[1646790834068,11.77,2615.5,2615.3,0.00345487]
[1646790834267,0.97107412,2615.6,2615.3,0.00345487]
[1646790834667,0.551,2615.8,2615.3,0.00345487]
[1646790834869,12.321,2615.8,2615.2,2.33350164]
[1646790835068,12.321,2615.8,2615.3,1.56904924]
[1646790835312,13.321,2615.8,2615.3,1.56904924]
[1646790835512,13.321,2615.8,2615.3,0.0033673]
[1646790835912,13.321,2615.8,2615.2,0.7678197]
[1646790836116,1.05483268,2615.5,2615.2,0.7678197]
[1646790836315,13.89175129,2615.8,2615.3,0.00456742]
[1646790836515,2.12175129,2615.8,2615.3,0.00456742]
[1646790836716,1.12175129,2615.8,2615.3,0.00456742]
[1646790837318,1.12175129,2615.8,2615.2,0.7678197]
[1646790837518,1.12175129,2615.8,2615.3,0.00456742]
[1646790837519,13.8963801,2615.8,2615.3,0.00456742]
[1646790837719,14.8963801,2615.8,2615.3,0.00456742]
[1646790838324,12.78798789,2615.4,2615.3,0.00456742]
[1646790838623,1.01798789,2615.4,2615.2,0.7678197]
[1646790838823,1.01798789,2615.4,2615.3,0.00430969]
[1646790839065,0.191,2615.7,2615.3,0.00430969]
[1646790839664,0.191,2615.7,2615.2,0.7678197]
[1646790839864,11.77,2616.0,2615.3,0.00430967]
[1646790839865,0.00399933,2615.9,2615.3,0.00430967]
[1646790840065,1.19680758,2615.8,2615.3,1.04722974]
[1646790840568,1.19680758,2615.8,2615.3,0.00430967]
[1646790840967,11.77,2615.7,2615.2,0.7678197]
[1646790841168,12.77,2615.7,2615.3,0.00430969]
[1646790841366,0.191,2615.6,2615.3,0.00430969]
[1646790841567,12.69010769,2615.4,2615.3,0.00430969]
[1646790841765,0.191,2615.6,2615.3,0.00430969]
[1646790841970,12.621,2615.7,2615.3,0.00430969]
[1646790842169,13.621,2615.7,2615.2,0.7678197]
[1646790842369,13.621,2615.7,2615.2,0.77212289]
[1646790842819,1.16547459,2615.5,2615.2,0.77212289]
[1646790843222,1.16547459,2615.5,2615.2,0.7678197]
[1646790843420,12.93547459,2615.5,2615.2,0.7678197]
[1646790843622,12.93547459,2615.5,2615.2,0.77212289]
[1646790843821,13.93547459,2615.5,2615.2,0.77212289]
[1646790844221,2.16547459,2615.5,2615.2,0.77212289]
[1646790844420,1.0,2615.5,2615.2,0.7678197]
[1646790844623,0.851,2615.7,2615.2,0.7678197]
[1646790844821,12.77,2615.8,2615.2,0.77212289]
[1646790844822,1.0,2615.8,2615.2,0.77212289]
[1646790845322,0.0039991,2615.9,2615.4,1.07833026]
[1646790845725,13.45238259,2616.0,2615.4,1.07833026]
[1646790845923,0.00399956,2615.9,2615.4,1.07833026]
[1646790846967,12.90138259,2616.0,2615.4,1.07833026]
[1646790846968,1.13138259,2616.0,2615.4,1.07833026]
[1646790847166,0.00399956,2615.9,2615.4,1.07833026]
[1646790848170,12.90138259,2616.0,2615.4,1.07833026]
[1646790848376,0.00399956,2615.9,2615.4,1.07833026]
[1646790849372,12.90138259,2616.0,2615.4,1.07833026]
[1646790849572,11.77,2615.8,2615.3,0.00430365]
[1646790849772,11.77,2615.6,2615.3,0.00430365]
[1646790850225,13.07,2615.6,2615.3,0.00430365]
[1646790850427,13.07,2615.6,2615.2,0.7678197]
[1646790850632,1.0,2615.6,2615.2,1.68935456]
[1646790850828,0.74599925,2615.9,2615.3,0.00430356]
[1646790851030,0.55499925,2615.9,2615.3,0.00430356]
[1646790851628,0.551,2615.9,2615.2,1.68935456]
[1646790852027,0.55500999,2615.9,2615.3,0.00430678]
[1646790852426,0.55500999,2615.9,2615.6,1.22707735]
[1646790852726,0.00400999,2615.9,2615.5,0.3]
[1646790852930,0.3,2616.2,2615.5,0.3]
[1646790853131,0.00401022,2615.9,2615.3,0.00430685]
[1646790853731,0.94014747,2615.8,2615.3,0.00430685]
[1646790854165,0.94014747,2615.8,2615.2,1.72146798]
[1646790854364,0.00400991,2615.9,2615.3,0.00430676]
[1646790855365,16.27,2616.1,2615.2,1.72146798]
[1646790855567,0.00400999,2615.9,2615.3,0.00430678]
[1646790855766,0.00400999,2615.9,2615.4,1.5656169]
[1646790856467,1.07461153,2616.0,2615.4,1.5656169]
[1646790856666,11.77,2615.9,2615.4,1.5656169]
[1646790856868,1.20459991,2615.6,2615.4,1.5656169]
[1646790857167,1.20459991,2615.6,2615.3,0.0043068]
[1646790857821,1.20459991,2615.6,2615.2,0.7678197]
[1646790858022,1.20459991,2615.6,2615.3,0.00430671]
[1646790858222,15.27,2615.5,2615.3,0.00430671]
[1646790858422,15.27,2615.4,2615.3,0.00430671]
[1646790858825,16.57,2615.4,2615.2,0.7678197]
[1646790859222,16.57,2615.4,2615.2,0.77212645]
[1646790859422,0.191,2615.7,2615.2,1.742973]
[1646790859623,1.57068022,2615.8,2615.3,1.56572237]
[1646790859824,0.57068022,2615.8,2615.3,1.56572237]
[1646790860123,0.87068022,2615.8,2615.3,1.56572237]
[1646790860322,0.87068022,2615.8,2615.3,1.57002913]
[1646790860522,11.77,2615.7,2615.3,0.00430676]
[1646790860721,1.73789494,2615.8,2615.3,0.00430676]
[1646790860922,0.00400991,2615.9,2615.4,1.56569815]
[1646790861324,0.191,2616.1,2615.4,1.56569815]
[1646790861567,0.00401006,2615.9,2615.4,1.56569815]
[1646790862067,12.98522912,2615.7,2615.4,1.56569815]
[1646790862363,12.98522912,2615.7,2615.3,0.00430681]
[1646790862564,12.98522912,2615.7,2615.2,0.7678197]
[1646790862565,16.48522912,2615.7,2615.2,0.7678197]
[1646790862767,16.48522912,2615.7,2615.3,1.5700195]
[1646790862967,16.48522912,2615.7,2615.3,0.00430376]
[1646790863570,16.48522912,2615.7,2615.4,1.56572031]
[1646790863970,12.98522912,2615.7,2615.2,0.7678197]
[1646790864170,16.48522912,2615.7,2615.3,1.56999328]
[1646790864369,16.48522912,2615.7,2615.4,1.56568955]
[1646790864571,17.06594827,2615.7,2615.4,1.56568955]
[1646790864768,18.36594827,2615.7,2615.4,1.56568955]
[1646790864967,18.36594827,2615.7,2615.2,0.7678197]
[1646790865217,18.36594827,2615.7,2615.3,1.57003203]
[1646790865218,11.77,2615.5,2615.3,1.57003203]
[1646790865514,11.77,2615.5,2615.3,0.00430375]
[1646790865515,15.821,2615.4,2615.3,0.00430375]
[1646790865715,12.621,2615.4,2615.3,0.00430375]
[1646790865915,17.121,2615.4,2615.3,0.00430375]
[1646790866115,17.2674,2615.4,2615.2,0.7678197]
[1646790866315,13.7674,2615.4,2615.2,0.7678197]
[1646790866515,14.91351,2615.4,2615.2,0.77212344]
[1646790866717,14.91431,2615.4,2615.2,0.77212344]
[1646790866917,12.75310946,2615.3,2615.2,0.77212344]
[1646790867116,13.30410946,2615.3,2615.2,0.77212344]
[1646790867316,14.30410946,2615.3,2615.2,0.7678197]
[1646790868121,13.30410946,2615.3,2615.2,0.7678197]
[1646790868322,14.30410946,2615.3,2615.2,0.7678197]
[1646790870977,13.30410946,2615.3,2615.2,0.7678197]
[1646790871175,0.551,2615.3,2615.2,0.7678197]
[1646790871379,0.3,2615.4,2615.2,0.7678197]
[1646790871380,12.07,2615.4,2615.2,0.7678197]
[1646790871576,0.18821695,2615.5,2615.2,0.7678197]
[1646790872379,11.77,2615.4,2615.2,0.7678197]
[1646790872579,0.9548901,2615.5,2615.2,0.77211663]
[1646790873224,11.77,2615.4,2615.2,0.77211663]
[1646790873423,11.77,2615.4,2615.2,0.7678197]
[1646790873626,0.9548901,2615.5,2615.2,0.77211663]
[1646790874025,0.3,2615.6,2615.2,0.77211663]
[1646790874226,1.40644581,2615.9,2615.2,0.77211663]
[1646790874227,11.96499958,2615.9,2615.3,1.56571576]
[1646790874426,0.00399958,2615.9,2615.3,1.56571576]
[1646790874629,15.27,2616.0,2615.3,1.56571576]
[1646790874826,11.77,2615.8,2615.3,0.00431173]
[1646790875027,12.92948753,2615.5,2615.3,0.00431173]
[1646790875427,14.22948753,2615.5,2615.3,0.00431173]
[1646790875827,14.22948753,2615.5,2615.2,0.7678197]
[1646790876230,14.22948753,2615.5,2615.3,0.00431173]
[1646790876484,14.78048753,2615.5,2615.3,0.00431173]
[1646790877073,14.78048753,2615.5,2615.2,0.7678197]
[1646790877276,14.78048753,2615.5,2615.3,0.00431173]
[1646790877474,15.27,2615.4,2615.3,0.00431173]
[1646790877778,12.77,2615.4,2615.3,0.00308941]
[1646790878179,12.77,2615.4,2615.2,0.7678197]
[1646790881616,16.27,2615.4,2615.2,0.7678197]
[1646790882017,12.77,2615.4,2615.2,0.7724749]
[1646790882215,16.27,2615.4,2615.2,0.7724749]
[1646790882621,12.77,2615.4,2615.2,0.7724749]
[1646790883021,12.77,2615.4,2615.2,0.7678197]
[1646790883221,12.77,2615.4,2615.2,0.7724749]
[1646790883624,16.27,2615.4,2615.2,0.7724749]
[1646790883822,12.77,2615.4,2615.2,0.7724749]
[1646790884266,12.77,2615.4,2615.2,0.7678197]
[1646790884666,12.77,2615.4,2615.2,0.7724749]
[1646790885366,12.77,2615.4,2615.2,0.7678197]
[1646790885765,12.77,2615.4,2615.2,0.77220602]
[1646790885766,1.0,2615.4,2615.2,0.77220602]
[1646790886167,2.61956132,2615.5,2615.2,0.77220602]
[1646790886365,1.61956132,2615.5,2615.2,0.77220602]
[1646790886568,2.61956132,2615.5,2615.2,0.7678197]
[1646790886766,1.31956132,2615.5,2615.2,0.7678197]
[1646790886967,1.31956132,2615.5,2615.2,0.77206631]
[1646790887919,13.08956132,2615.5,2615.2,0.7678197]
[1646790888119,13.08956132,2615.5,2615.2,0.77206631]
[1646790888419,1.31956132,2615.5,2615.2,0.02222549]
[1646790888622,1.15948753,2615.5,2615.2,0.02222549]
[1646790888821,0.551,2615.7,2615.2,0.02222549]
[1646790889019,0.851,2615.7,2615.2,0.01797888]
[1646790889421,12.621,2615.7,2615.2,0.02222549]
[1646790889821,13.621,2615.7,2615.2,0.02222549]
[1646790890222,1.03090906,2615.5,2615.2,0.01797888]
[1646790890422,1.03090906,2615.5,2615.2,0.0220688]
[1646790891572,1.03090906,2615.5,2615.2,0.01797888]
[1646790891770,1.03090906,2615.5,2615.2,0.02206876]
[1646790892671,1.03090906,2615.5,2615.2,0.01797888]
[1646790892880,1.3,2615.7,2615.2,0.02206876]
[1646790893277,0.3,2615.7,2615.2,0.02206876]
[1646790893681,0.30330729,2615.8,2615.2,0.02206876]
[1646790893884,12.90193449,2615.4,2615.2,0.01797888]
[1646790894180,12.90193449,2615.4,2615.2,0.02207957]
[1646790894580,14.20193449,2615.4,2615.2,0.02207957]
[1646790895080,14.20193449,2615.4,2615.2,0.01797888]
[1646790895317,14.20193449,2615.4,2615.2,0.02207958]
[1646790896319,14.20193449,2615.4,2615.2,0.01797888]
[1646790896619,14.20193449,2615.4,2615.2,0.02207958]
[1646790897419,14.20193449,2615.4,2615.2,0.01797888]
[1646790897619,14.20193449,2615.4,2615.2,0.02208046]
[1646790898624,14.20193449,2615.4,2615.2,0.01797888]
[1646790898829,14.20193449,2615.4,2615.2,0.02208046]
[1646790899873,14.20193449,2615.4,2615.2,0.01797888]
[1646790900074,14.20193449,2615.4,2615.2,0.02208046]
[1646790900972,14.20193449,2615.4,2615.2,0.01797888]
[1646790901371,14.20193449,2615.4,2615.2,0.0220799]
[1646790901771,14.20193449,2615.4,2615.2,0.02062562]
[1646790902174,14.20193449,2615.4,2615.2,0.0165246]
[1646790902574,2.43193449,2615.4,2615.2,0.02062562]
[1646790902830,1.43193449,2615.4,2615.2,0.02062562]
[1646790903025,1.0,2615.6,2615.2,0.02062562]
[1646790903228,0.3,2615.6,2615.2,0.02062562]
[1646790903425,12.07,2615.6,2615.2,0.0165246]
[1646790903627,15.27,2615.6,2615.2,0.02062559]
[1646790903828,16.27,2615.6,2615.2,0.02062559]
[1646790904225,11.77,2615.4,2615.2,0.02062559]
[1646790904427,15.27,2615.4,2615.2,0.02062559]
[1646790904625,17.121,2615.4,2615.2,0.0165246]
[1646790904826,12.75256735,2615.3,2615.2,0.02062579]
[1646790905225,13.75256735,2615.3,2615.2,0.02062579]
[1646790905828,13.75256735,2615.3,2615.2,0.0165246]
[1646790906026,1.98256735,2615.3,2615.2,0.0165246]
[1646790906226,0.98256735,2615.3,2615.2,0.0165246]
[1646790906866,12.75256735,2615.3,2615.2,0.0165246]
[1646790907268,13.75256735,2615.3,2615.2,0.01943316]
[1646790908071,17.25256735,2615.3,2615.2,0.01943316]
[1646790908271,13.75256735,2615.3,2615.2,0.01943316]
[1646790909372,14.30356735,2615.3,2615.2,0.01943316]
[1646790912819,1.98256735,2615.3,2615.2,1.58530915]
[1646790913221,0.98256735,2615.3,2615.2,1.58530915]
[1646790913626,12.75256735,2615.3,2615.2,1.58530915]
[1646790913822,13.75256735,2615.3,2615.2,1.58530915]
[1646790914070,13.75256735,2615.3,2615.2,0.01943316]
[1646790914569,14.30356735,2615.3,2615.2,0.01943316]
[1646790921767,14.30356735,2615.3,2615.2,0.01814154]
[1646790922772,13.75256735,2615.3,2615.2,0.01814154]
[1646790923374,12.75256735,2615.3,2615.2,0.01814154]
[1646790923978,12.75256735,2615.3,2615.2,1.58398697]
[1646790924774,0.98256735,2615.3,2615.2,1.58398697]
[1646790925616,12.77,2615.6,2615.2,1.58398697]
[1646790925817,12.77,2615.6,2615.3,1.56582643]
[1646790925818,1.0,2615.6,2615.3,1.56582643]
[1646790926218,13.63030971,2615.7,2615.3,1.56582643]
[1646790926620,1.13331518,2615.5,2615.3,1.56582643]
[1646790927018,12.90331518,2615.5,2615.2,0.02224269]
[1646790927418,12.90331518,2615.5,2615.2,0.00410115]
[1646790927619,12.90331518,2615.5,2615.1,0.0180016]
[1646790927821,12.90331518,2615.5,2615.2,1.56597598]
[1646790928222,12.90331518,2615.5,2615.1,0.0180016]
[1646790928421,12.90331518,2615.5,2615.2,1.56594418]
[1646790930270,1.13331518,2615.5,2615.2,1.57053368]
[1646790930469,1.13331518,2615.5,2615.3,1.56594418]
[1646790930670,15.27,2615.4,2615.3,1.56594418]
[1646790930883,15.821,2615.4,2615.2,0.0045895]
[1646790931070,11.77,2615.3,2615.2,0.0045895]
[1646790931274,13.621,2615.3,2615.1,0.0180016]
[1646790931670,13.621,2615.3,2615.2,0.0045895]
[1646790931976,13.621,2615.3,2614.6,1.16386728]
[1646790931977,11.77,2615.1,2614.6,0.01786728]
[1646790932170,11.77,2614.9,2614.6,0.01786728]
[1646790932370,11.77,2614.7,2614.6,0.01786728]
[1646790932576,12.321,2614.7,2614.6,0.01786728]
[1646790932828,13.621,2614.7,2614.6,0.01786728]
[1646790933127,2.07342847,2614.9,2614.6,1.58411974]
[1646790933128,0.88222847,2614.9,2614.6,1.58411974]
[1646790933326,0.88222847,2614.9,2614.7,1.5661867]
[1646790933327,0.551,2614.9,2614.7,1.5661867]
[1646790933730,0.551,2615.2,2614.7,1.5661867]
[1646790933928,0.00096408,2615.0,2614.7,1.5661867]
[1646790934128,12.32196408,2615.0,2614.6,0.01786728]
[1646790934829,12.321,2615.0,2614.6,0.01786728]
[1646790935229,0.89626416,2614.9,2614.7,0.00440201]
[1646790935629,11.77,2614.8,2614.7,0.00440201]
[1646790935830,12.77,2614.8,2614.7,0.00440201]
[1646790936028,16.27,2614.8,2614.6,0.01786728]
[1646790936234,12.321,2614.7,2614.6,0.01786728]
[1646790936487,12.321,2614.7,2614.6,0.02226935]
[1646790936674,13.621,2614.7,2614.6,0.02226935]
[1646790937277,13.621,2614.7,2614.6,0.01786728]
[1646790937476,17.121,2614.7,2614.6,0.01786728]
[1646790938178,13.621,2614.7,2614.6,0.01786728]
[1646790939179,1.851,2614.7,2614.6,0.01786728]
[1646790939379,1.3,2614.7,2614.6,0.01786728]
[1646790939580,0.3,2614.7,2614.6,0.01786728]
[1646790939785,0.1912,2614.9,2614.6,0.01786728]
[1646790940216,11.9612,2614.9,2614.6,0.01786728]
[1646790940617,13.5122,2614.9,2614.6,0.01786728]
[1646790940816,13.5122,2614.9,2614.6,0.01309976]
[1646790941219,13.5122,2614.9,2614.6,0.01738504]
[1646790941417,11.77,2614.7,2614.6,0.01738504]
[1646790941617,12.98053108,2614.8,2614.6,0.01738504]
[1646790941817,0.7422,2614.9,2614.6,0.01738504]
[1646790942218,0.20351882,2615.1,2614.6,0.01309976]
[1646790942422,0.00331259,2615.0,2614.6,0.0173851]
[1646790942920,0.91288002,2615.0,2614.6,0.0173851]
[1646790943321,1.20956743,2615.0,2614.6,0.01309976]
[1646790943720,1.21288014,2615.0,2614.7,0.00409081]
[1646790944570,1.20956743,2615.0,2614.6,0.01309976]
[1646790944770,1.21056318,2615.0,2614.6,0.01309976]
[1646790944975,11.77,2614.9,2614.6,0.01309976]
[1646790946773,11.77,2614.9,2614.3,0.01243088]
[1646790946973,11.77,2614.9,2614.4,1.56625537]
[1646790947176,11.77,2614.9,2614.6,0.00442939]
[1646790947575,12.321,2614.9,2614.6,0.00442939]
[1646790947821,0.551,2614.9,2614.6,0.00442939]
[1646790948222,0.551,2614.9,2614.3,0.01243088]
[1646790948425,0.551,2614.9,2614.6,0.00450692]
[1646790948624,1.77333225,2615.0,2614.6,0.00450692]
[1646790948825,13.54333225,2615.0,2614.6,0.00450692]
[1646790949025,14.09433225,2615.0,2614.6,0.00450692]
[1646790949225,15.09433225,2615.0,2614.7,1.56618695]
[1646790949425,15.09075482,2615.0,2614.7,1.56618695]
[1646790949627,15.09433231,2615.0,2614.7,0.00450686]
[1646790950028,0.3,2614.8,2614.7,0.00450686]
[1646790950229,0.18401405,2614.9,2614.7,0.00450686]
[1646790950628,0.18401405,2614.9,2614.3,0.01243088]
[1646790950827,0.18401405,2614.9,2614.6,0.00450692]
[1646790951229,0.00357743,2615.0,2614.6,0.90014945]
[1646790951493,0.00357743,2615.0,2614.7,1.56613134]
[1646790951878,0.3,2615.3,2614.7,1.56613134]
[1646790952077,0.1912,2615.5,2614.7,1.57039415]
[1646790952078,0.00325982,2615.0,2614.7,1.57039415]
[1646790952380,0.00325982,2615.0,2614.8,1.56613134]
[1646790952977,12.77,2615.4,2614.8,1.56613134]
[1646790953177,0.00325988,2615.0,2614.9,1.56613134]
[1646790953581,1.19412665,2615.0,2614.8,1.56613134]
[1646790953781,1.19412665,2615.0,2614.9,1.56613134]
[1646790954180,1.19086677,2615.0,2614.8,1.56613134]
[1646790954381,1.19086677,2615.0,2614.9,1.56613134]
[1646790954882,1.19086677,2615.0,2614.8,1.56613134]
[1646790955081,1.19086677,2615.0,2614.7,0.00426287]
[1646790955350,1.19086677,2615.0,2614.3,2.29762017]
[1646790955646,1.19086677,2615.0,2614.7,0.00408784]
[1646790955647,13.26419775,2615.0,2614.7,0.00408784]
[1646790956547,13.26086677,2615.0,2614.4,1.5661618]
[1646790956749,13.26419774,2615.0,2614.7,0.00408782]
[1646790957952,0.93456721,2614.6,2614.4,1.5661618]
[1646790958150,13.20090323,2615.0,2614.6,0.73607451]
[1646790958351,14.20090323,2615.0,2614.6,0.73607451]
[1646790958751,11.77,2614.8,2614.6,0.73607451]
[1646790959179,11.77,2614.8,2614.7,0.00409529]
[1646790960178,11.77,2614.8,2614.6,0.73607451]
[1646790960379,11.77,2614.8,2614.6,0.74016985]
[1646790960879,11.77,2614.6,2614.0,0.01638516]
[1646790961081,11.77,2614.6,2613.9,0.00563777]
[1646790961082,11.77,2614.2,2613.9,0.00563777]
[1646790961281,0.16960296,2614.6,2613.9,0.00563777]
[1646790961282,0.551,2614.1,2613.9,0.00563777]
[1646790961484,0.551,2614.4,2613.9,0.00563777]
[1646790962732,14.24473881,2614.6,2614.1,0.9828144]
[1646790962733,0.16960296,2614.6,2614.1,0.9828144]
[1646790962935,0.00101095,2614.3,2614.1,0.9828144]
[1646790963134,0.00101095,2614.3,2614.2,0.04092648]
[1646790963733,0.1912,2614.8,2614.2,0.04092648]
[1646790964134,0.00101095,2614.4,2614.2,0.04092648]
[1646790964934,0.1912,2614.8,2614.2,0.04092648]
[1646790965134,13.15243294,2614.9,2614.2,0.03675548]
[1646790965334,0.00101095,2614.4,2614.2,0.03675548]
[1646790966235,13.15243294,2614.9,2614.2,0.03675548]
[1646790966492,0.00362141,2614.4,2614.2,0.03675548]
[1646790967492,0.16042704,2614.9,2614.2,0.03675548]
[1646790967693,0.16042704,2614.9,2614.5,1.17970409]
[1646790968092,1.59506629,2615.2,2614.5,1.17970409]
[1646790968295,0.1912,2615.2,2614.6,3.5]
[1646790968498,0.1912,2615.4,2614.5,1.17970409]
[1646790968694,0.1912,2615.4,2615.0,0.90067715]
[1646790968894,0.00362141,2615.0,2614.7,1.2029]
[1646790969894,0.1912,2615.4,2614.9,0.95384966]
[1646790970095,0.0033104,2615.0,2614.9,0.95384966]
[1646790970925,0.0033104,2615.0,2614.7,1.2029]
[1646790971135,15.59939997,2615.5,2614.7,1.2029]
[1646790971328,0.0033104,2615.1,2614.7,1.2029]
[1646790971930,0.0033104,2615.1,2614.9,1.04284549]
[1646790972331,11.77,2615.4,2614.9,1.04284549]
[1646790972532,0.0033104,2615.0,2614.7,1.2029]
[1646790973530,11.77,2614.9,2614.5,2.9487]
[1646790973733,11.77,2614.9,2614.4,0.90737354]
[1646790974372,13.51630055,2615.0,2614.4,0.90737354]
[1646790974875,0.00337086,2614.8,2614.4,0.90737354]
[1646790975881,2.3525909,2615.3,2614.4,0.90737354]
[1646790976082,0.00337086,2614.7,2614.4,0.90737354]
[1646790977082,5.8525909,2615.3,2614.4,0.90737354]
[1646790977283,0.00335741,2614.7,2614.4,0.90737354]
[1646790978132,1.01662584,2615.0,2614.7,0.00547374]
[1646790979331,0.3,2615.1,2614.7,0.00547374]
[1646790979733,0.1912,2615.2,2614.7,0.00547374]
[1646790980534,1.23757011,2615.2,2614.7,0.00547374]
[1646790980933,0.00101065,2615.1,2614.7,0.00547374]
[1646790981136,0.00101065,2615.1,2614.8,1.56613127]
[1646790981800,1.23757011,2615.2,2614.8,1.56613127]
[1646790982200,0.00336045,2615.1,2614.8,1.56613127]
[1646790983002,0.1912,2615.2,2614.8,1.56613127]
[1646790983403,0.00336045,2615.1,2614.8,1.56613127]
[1646790984004,0.00336045,2615.1,2614.8,2.73420457]
[1646790984206,0.1802909,2615.3,2614.9,1.56613127]
[1646790984606,0.00335132,2615.1,2614.9,1.56613127]
[1646790985426,0.1912,2615.7,2614.9,1.95143127]
[1646790985626,0.15773141,2615.8,2615.0,1.56613127]
[1646790985826,0.00335132,2615.1,2615.0,1.56613127]
[1646790986626,1.04505806,2615.8,2615.0,1.56613127]
[1646790986828,0.00335132,2615.2,2615.0,1.56613127]
[1646790987830,0.15773141,2615.8,2615.0,1.56613127]
[1646790987831,1.22479669,2615.5,2615.0,1.56613127]
[1646790988032,0.00335335,2615.2,2615.0,1.56613127]
[1646790989077,11.77,2615.4,2615.0,1.56613127]
[1646790989480,0.00335335,2615.2,2615.0,1.56613127]
[1646790989878,0.00335335,2615.2,2614.7,0.00547374]
[1646790989879,11.77335335,2615.2,2614.7,0.00547374]
[1646790990079,3.67411767,2615.1,2614.7,0.00547374]
[1646790990278,3.67411767,2615.1,2614.8,1.56619972]
[1646790990279,0.17411767,2615.1,2614.8,1.56619972]
[1646790990477,0.17411767,2615.1,2614.7,0.00547374]
[1646790990478,1.17411767,2615.1,2614.7,0.00547374]
[1646790990678,1.17747102,2615.1,2614.7,0.00547374]
[1646790990879,0.92473031,2615.1,2614.7,0.00547374]
[1646790991479,12.69137696,2615.1,2614.7,0.00547374]
[1646790991679,0.00335295,2615.0,2614.7,0.00547374]
[1646790992723,1.47237696,2615.1,2614.7,0.00547374]
[1646790992929,0.00335295,2615.0,2614.7,0.00547374]
[1646790993231,0.00335295,2615.0,2614.8,1.56618478]
[1646790995130,13.07627046,2615.4,2614.8,1.56618478]
[1646790995331,0.00335309,2615.0,2614.8,1.56618478]
[1646790996230,0.1912,2615.3,2614.9,1.05305421]
[1646790996482,0.1912,2615.3,2615.0,1.56618478]
[1646790996880,0.1912,2615.3,2614.7,0.00547374]